Cogmind - Beta 13 @@@ ROGUE MODE // 2024.07.14 @ 16:54:28 Player: Blaj Result: Destroyed self with Grenade Launcher Performance ------------- Evolutions (0) 0 Regions Visited (3) 600 Robots Destroyed (52) 260 Value Destroyed (1133) 1133 Prototype IDs (4) 80 Alien Tech Used (0) 0 Bonus (-40) -40 TOTAL SCORE: 2033 Bonus ------- Follower Combat Kills 51 Friendly Fire -91 Cogmind --------- Core Integrity 0/250 Matter 280/300 Energy 180/180 System Corruption 0% Temperature Cool (0) Movement Rolling (107) Ox1 Location -10/Subcaves Parts ------- > --- POWER (1) -------- Meta Core > --- PROPULSION (2+1) - Wheel Subdweller Monowheel > --- UTILITY (2+1) ---- Large Storage Unit Experimental Sensor Array > --- WEAPON (2+1) ----- Subdweller Beam Cannon Grenade Launcher > --- INVENTORY (15) --- Subdweller Power Source Subdweller Power Source Subdweller Monowheel Disposable Heat Sink High-capacity Matter Pod (200) Hacking Suite Subdweller Beam Cannon Subdweller Machine Gun Subdweller Machine Gun Subdweller Machine Gun Light Cannon Grenade Launcher Scrap Shield Fragment (49) Scrap Shield Fragment (45) Scrap Shield Fragment (31) Peak State ------------ > --- POWER ------------ Meta Core > --- PROPULSION ------- Subdweller Monowheel Subdweller Monowheel > --- UTILITY ---------- Large Storage Unit Experimental Sensor Array > --- WEAPON ----------- Subdweller Beam Cannon Subdweller Beam Cannon > --- INVENTORY -------- Subdweller Power Source Subdweller Power Source Wheel Disposable Heat Sink High-capacity Matter Pod Hacking Suite Subdweller Machine Gun Subdweller Machine Gun Subdweller Machine Gun Light Cannon Grenade Launcher Grenade Launcher Scrap Shield Fragment Scrap Shield Fragment Scrap Shield Fragment [Rating: 33] Favorites ----------- Power Ion Engine Engine Ion Engine Power Core Meta Core Propulsion Wheel Leg Aluminum Leg Wheel Wheel Utility Large Storage Unit Device Seismic Detector Storage Large Storage Unit Processor Signal Interpreter Weapon Light Cannon Energy Gun Medium Laser Energy Cannon Subdweller Beam Cannon Ballistic Gun Assault Rifle Ballistic Cannon Light Cannon Launcher Grenade Launcher Build | -11 -10 -10 -10 ------- Run | Yrd Mat Min Sub Slots Evolved . | . . . . Power . | . . . . Propulsion . | . . . . Utility . | . . . . Weapon . | . . . . Parts Attached 48 | 3 19 10 16 Power 8 | . 3 2 3 Engine 7 | . 3 2 2 Core 1 | . . . 1 Reactor . | . . . . Propulsion 11 | 2 4 1 4 Treads . | . . . . Leg . | . . . . Wheel 11 | 2 4 1 4 Hover . | . . . . Flight . | . . . . Utility 10 | 1 4 2 3 Device 6 | 1 2 1 2 Storage 3 | . 2 . 1 Processor 1 | . . 1 . Hackware . | . . . . Protection . | . . . . Artifact . | . . . . Weapon 19 | . 8 5 6 Energy Gun 1 | . 1 . . Energy Cannon 2 | . . . 2 Ballistic Gun 7 | . 4 1 2 Ballistic Cannon 5 | . 3 2 . Launcher 4 | . . 2 2 Special Weapon . | . . . . Impact Weapon . | . . . . Slashing Weapon . | . . . . Piercing Weapon . | . . . . Special Melee Weapon . | . . . . Unidentified Prototypes 2 | . . . 2 Parts Lost 8 | . 5 1 2 Power 3 | . 1 1 1 Propulsion 3 | . 2 . 1 Utility 1 | . 1 . . Weapon 1 | . 1 . . Highest Loss Streak 3 | . 3 1 2 To Critical Strikes . | . . . . Average Slot Usage (%) 90 | . 99 95 77 Engine 11 | . 13 13 6 Core 2 | . . . 5 Wheel 26 | . 28 27 23 Device 10 | . 13 10 7 Storage 12 | . 14 12 10 Energy Gun 2 | . 5 . . Energy Cannon 3 | . . . 10 Ballistic Gun 8 | . 13 2 6 Ballistic Cannon 9 | . 7 21 4 Launcher 1 | . . 3 2 Naked Turns . | . . . . Heaviest Build 43 | 15 32 32 43 Greatest Support 40 | 20 20 20 40 Greatest Overweight (x) 1 | . 1 1 1 Average Overweight (x) . | . . . . Largest Inventory Capacity 15 | 8 15 15 15 Average Capacity 12 | 8 11 13 14 Most Carried 15 | 8 12 14 15 Average Carried 10 | 3 8 11 12 Final Capacity 15 | 8 15 5 15 Final Carried 15 | 6 12 5 15 Class Distribution -------------------- 65% | Scavenger-Mutant 34% | Mutant Dominant Class ---------------- Scavenger-Mutant | -10/Materials Scavenger-Mutant | -10/Mines Scavenger-Mutant | -10/Subcaves Resources | -11 -10 -10 -10 ----------- Run | Yrd Mat Min Sub Matter Collected 1576 | 230 937 166 243 Remotely . | . . . . Salvage Created 1666 | 210 1057 40 359 Parts 101 | 12 60 7 22 Haulers Intercepted 2 | . 2 . . Recyclers Shooed 1 | . 1 . . Parts Field Recycled . | . . . . Retrieved Matter . | . . . . Parts Self-Destructed 8 | . . . 8 Prevented . | . . . . Kills | -11 -10 -10 -10 ------- Run | Yrd Mat Min Sub Combat Hostiles Destroyed 32 | . 16 6 10 Guns 17 | . 15 . 2 Cannons 7 | . 1 1 5 AOE 7 | . . 5 2 Classes Destroyed 12 | 2 6 1 3 Worker 3 | . 2 1 . Builder 2 | . 2 . . Tunneler 7 | 5 2 . . Hauler 2 | . 2 . . Recycler 4 | 1 3 . . Operator 2 | . 2 . . Swarmer 9 | . 3 5 1 Grunt 13 | . 13 . . Demolisher 1 | . . 1 . Artisan 1 | . . . 1 Cobbler 1 | . . . 1 Subdweller 9 | . . . 9 Best Kill Streak 5 | 4 5 3 3 Combat Bots Only 4 | . 4 3 3 Max Kills in Single Turn 2 | 1 1 2 1 Gunslinging . | . . . . Exploded 2 | . . 2 1 Melee . | . . . . Uniques/NPCs Destroyed . | . . . . Combat | -11 -10 -10 -10 -------- Run | Yrd Mat Min Sub Hostile Shots Fired 139 | . 74 6 59 Missed 37 | . 18 . 19 Damage Taken 1526 | . 638 151 737 Core 254 | . 89 . 165 Absorbed by Shields . | . . . . Regen/Repaired (Parts) 93 | . 93 . . Core Remaining (%) 100 | 100 . . . Volleys Fired 198 | 11 109 12 66 Largest 2 | 2 2 2 2 Hottest 160 | 90 115 70 160 Shots Fired 320 | 22 189 16 93 Gun 212 | 22 160 4 26 Cannon 100 | . 29 8 63 Launcher 8 | . . 4 4 Special . | . . . . Kinetic 186 | . 146 12 28 Thermal 104 | 11 32 . 61 Explosive 8 | . . 4 4 Electromagnetic 22 | 11 11 . . Robot Hit Streak 12 | 7 12 4 8 Robot Miss Streak 5 | 2 5 3 2 Penetration Max . | . . . . Secondary Targets 2 | . 2 . . Max Gunslinging Chain 1 | . 1 . . Shots Hit Robots 188 | 14 110 7 57 Core Hits 75 | 7 48 8 12 Critical Kills 1 | . . . 1 Critical Parts Destroyed . | . . . . Critical Strikes 8 | 3 4 . 1 Burn 7 | 3 4 . . Meltdown 1 | . . . 1 Melee Attacks . | . . . . Impact . | . . . . Slashing . | . . . . Piercing . | . . . . Sneak Attacks . | . . . . Combat Hostiles . | . . . . Follow-up Attacks . | . . . . Damage Inflicted 3920 | 179 1589 365 1787 Guns 1826 | 179 1300 25 322 Cannons 1459 | . 288 85 1086 Explosions 634 | . . 255 379 Melee . | . . . . Ramming 1 | . 1 . . Kinetic 1644 | . 1177 110 357 Thermal 1472 | 88 333 . 1051 Explosive 634 | . . 255 379 Electromagnetic 169 | 91 78 . . Impact . | . . . . Slashing . | . . . . Piercing . | . . . . Highest Corruption . | . . . . Average Corruption . | . . . . Corruption Purged . | . . . . Corruption Blocked . | . . . . Overload Shots . | . . . . Overflow Damage 92 | . 7 6 79 Projectiles 60 | . 7 . 53 Explosions 32 | . . 6 26 Melee . | . . . . Knockbacks 8 | . 6 2 . Impact . | . . . . Kinetic 8 | . 6 2 . Secondary . | . . . . Self-Inflicted Damage 65 | . . . 65 Shots 3 | . . . 3 Rammed 2 | . 2 . . Targets Rammed 2 | . 2 . . Kicked . | . . . . Crushed . | . . . . Highest Temperature 223 | 120 223 12 190 Average Temperature 56 | 48 56 6 85 Received Heat Transfer 516 | . 354 . 162 Siege Activations . | . . . . Robots Corrupted . | . . . . Combat Hostiles . | . . . . Parts Fried . | . . . . Impact Corruptions . | . . . . Robots Melted 1 | . . . 1 Combat Hostiles 1 | . . . 1 Parts Melted 6 | 3 . . 3 Heat Transferred 3145 | 481 1258 . 1406 Parts Sabotaged . | . . . . Parts Stolen . | . . . . Parts Stripped . | . . . . Power Chain Reactions . | . . . . Alert | -11 -10 -10 -10 ------- Run | Yrd Mat Min Sub Peak Influence 350 | 30 350 187 . Initial 73 | . 19 73 . Average 174 | 16 235 85 . Maximum Alert Level 1 | . 1 . . Low Security (%) 58 | 100 32 100 . Level 1 41 | . 67 . . Level 2 . | . . . . Level 3 . | . . . . Level 4 . | . . . . Level 5 . | . . . . High Security . | . . . . Max Security . | . . . . Squads Dispatched 4 | . 4 . . Investigation 2 | . 2 . . Extermination . | . . . . Reinforcement 2 | . 2 . . Assault . | . . . . Garrison . | . . . . Intercept . | . . . . Searches Triggered . | . . . . Construction Impeded . | . . . . Haulers Reinforced . | . . . . Active Scanning Responses . | . . . . Cargo Convoy Interrupts . | . . . . Stealth | -11 -10 -10 -10 --------- Run | Yrd Mat Min Sub Distress Signals 5 | . 5 . . Communications Jammed . | . . . . Distress Signals . | . . . . Times Spotted 93 | . 43 9 41 Peak Tracking Total 7 | . 5 7 5 Tactical Retreats 4 | . . 1 3 Traps | -11 -10 -10 -10 ------- Run | Yrd Mat Min Sub Traps Triggered 2 | . 2 . . Indirectly . | . . . . Trap Hack Attempts . | . . . . Triggered . | . . . . Disarmed . | . . . . Reprogrammed . | . . . . Reused 1 | . . . 1 Traps Extracted . | . . . . Installed 1 | . . . 1 Triggered . | . . . . Most Traps Carried 1 | . . . 1 Machines | -11 -10 -10 -10 ---------- Run | Yrd Mat Min Sub Machines Disabled 5 | . 3 1 1 Max in Single Turn 1 | . 1 1 1 Machines Repaired . | . . . . Machines Dismantled . | . . . . Machines Sabotaged . | . . . . Overloaded Fab Kills . | . . . . Hacking | -11 -10 -10 -10 --------- Run | Yrd Mat Min Sub Machines Accessed 8 | . 8 . . Terminals 5 | . 5 . . Fabricators . | . . . . Repair Stations 1 | . 1 . . Recycling Units 2 | . 2 . . Scanalyzers . | . . . . Garrison Access . | . . . . Total Hacks 26 | . 26 . . Successful 10 | . 10 . . Failed 16 | . 16 . . Catastrophic 5 | . 5 . . Database Lockouts . | . . . . Manual 14 | . 14 . . Terminals 16 | . 16 . . Fabricators . | . . . . Repair Stations 3 | . 3 . . Recycling Units 7 | . 7 . . Scanalyzers . | . . . . Garrison Access . | . . . . Terminal Hacks 2 | . 2 . . Prototype ID Bank 1 | . 1 . . Branch Access Points 1 | . 1 . . Fabricator Hacks . | . . . . Repair Station Hacks 2 | . 2 . . Scan Component 1 | . 1 . . Repair 1 | . 1 . . Recycling Unit Hacks . | . . . . Scanalyzer . | . . . . Garrison Access Hacks . | . . . . Unauthorized Hacks 6 | . 6 . . Terminals 2 | . 2 . . Assimilate 1 | . 1 . . Operators 1 | . 1 . . Fabricators . | . . . . Repair Stations . | . . . . Recycling Units 4 | . 4 . . Reject 2 | . 2 . . Recyclers 2 | . 2 . . Scanalyzers . | . . . . Garrison Access . | . . . . Data Cores Recovered . | . . . . Used . | . . . . Hacking Detections 5 | . 5 . . Full Trace Events . | . . . . Feedback Events . | . . . . Feedback Blocked . | . . . . Robot Schematics Acquired . | . . . . Robots Built . | . . . . Authchips . | . . . . Time . | . . . . Total Robot Build Rating . | . . . . Part Schematics Acquired . | . . . . Parts Built . | . . . . Authchips . | . . . . Time . | . . . . Total Part Build Rating . | . . . . Parts Repaired 1 | . 1 . . Time 26 | . 26 . . Parts Recycled . | . . . . Recycled Matter . | . . . . Retrieved Matter . | . . . . Retrieved Components . | . . . . Parts Scanalyzed . | . . . . Part Schematics Acquired . | . . . . Parts Damaged . | . . . . Bothacking | -11 -10 -10 -10 ------------ Run | Yrd Mat Min Sub Used RIF Installer . | . . . . Robots Hacked . | . . . . Non-combat . | . . . . Combat . | . . . . Robot Hacks Applied . | . . . . Relay Couplers Released . | . . . . Fabnet Peak Effective % . | . . . . Robots Rewired . | . . . . Allies Hacked . | . . . . Hacks Repelled . | . . . . Allies | -11 -10 -10 -10 -------- Run | Yrd Mat Min Sub Total Allies 4 | . 1 3 . Largest Group 3 | . 1 3 3 Highest-Rated Group 40 | . 10 40 40 Highest-Rated Ally 16 | . 10 16 16 Total Orders 1 | . 1 . . STAY 1 | . 1 . . Ally Attacks 30 | . . 5 25 Total Damage 297 | . . 43 254 Kills 4 | . . 1 3 Allies Corrupted . | . . . . Allies Melted . | . . . . Intel | -11 -10 -10 -10 ------- Run | Yrd Mat Min Sub Robot Analysis Total . | . . . . Derelict Logs Recovered 3 | . . 2 1 Drone Launches . | . . . . Drone Recoveries . | . . . . Exploration | -11 -10 -10 -10 ------------- Run | Yrd Mat Min Sub Turns Passed 3126 | 119 1269 656 1082 Spaces Moved 2376 | 62 948 605 761 Core . | . . . . Treads . | . . . . Legs 1 | 1 . . . Wheels 2375 | 61 948 605 761 Hover . | . . . . Flight . | . . . . Fastest Speed 80 | 80 80 80 80 Average Speed 94 | 80 87 93 107 Slowest Speed 120 | 120 95 95 120 Overloaded Moves . | . . . . Propulsion Burnouts . | . . . . Robots Hopped . | . . . . Cave-ins Triggered . | . . . . Exploration Rate (%) 60 | 4 98 97 42 Regions Visited 3 Branch Regions 2 Pre-discovered Areas 1 | . . 1 . Known Exits Taken 2 | . 1 1 . Unknown Exits Taken 1 | 1 . . . Scrap Searched 4 | . . 2 2 Spaces Dug 24 | . . 10 14 Terrain Destroyed 55 | . . 31 24 Melee . | . . . . Projectile 8 | . . . 8 AOE 47 | . . 31 16 Terrain Rammed . | . . . . Walls Destroyed . | . . . . Machines Disabled . | . . . . Actions | -11 -10 -10 -10 --------- Run | Yrd Mat Min Sub Total 2936 | 111 1204 687 934 Wait 226 | 24 94 41 67 Move 2373 | 61 947 604 761 Hop . | . . . . Pick Up 41 | 5 18 4 14 Fast Attach 10 | 1 4 . 5 Attach 18 | 2 7 5 4 Detach 12 | 2 1 5 4 Swap 20 | . 8 5 7 Drop 35 | 5 14 11 5 Fire 198 | 11 109 12 66 Melee . | . . . . Ram 2 | . 2 . . Kick . | . . . . Crush . | . . . . Escape Stasis . | . . . . Rewire . | . . . . Trap 1 | . . . 1 Miscellaneous . | . . . . Route ------- -11/Scrapyard -10/Materials (discovered 4 exits: *Mat x3 / *Min) -10/Mines (discovered 3 exits: *Mat x2 / *Sub) -10/Subcaves (discovered 3 exits: [*Mat x2] / [*Rec]) History --------- Turn | Location | Event 1 | -11/Scrapyard | Discovered new exit (range 3) 120 | -11/Scrapyard | Entered Materials 284 | -10/Materials | Discovered new exit (range 16) 320 | -10/Materials | Build established: Mutant 427 | -10/Materials | Discovered new exit (range 13) 582 | -10/Materials | Identified exit to Mines 657 | -10/Materials | Discovered new exit (range 11) 711 | -10/Materials | Lost 3 parts (1p1n1u) 788 | -10/Materials | Repaired Assault Rifle 1006 | -10/Materials | Build established: Scavenger-Mutant 1117 | -10/Materials | Discovered new exit (range 9) 1389 | -10/Materials | Entered Mines 1390 | -10/Mines | Assembled infested the area 1395 | -10/Mines | Assisted by a Guerilla fighting off Assembled 1453 | -10/Mines | Learned Materials stockpile data 1610 | -10/Mines | Learned location of Mines (-8) 1724 | -10/Mines | Discovered new exit (range 10) 1744 | -10/Mines | Identified exit to Materials 1758 | -10/Mines | Found a damaged Exp. Sensor Array with a note attached 1760 | -10/Mines | Found Prototype Device 1803 | -10/Mines | Discovered new exit (range 5) 1817 | -10/Mines | Identified exit to Subcaves 1890 | -10/Mines | Discovered exit to Materials (range 10) 1900 | -10/Mines | Assisted by bots powering up and referring to "LRC-V3" 2045 | -10/Mines | Entered Subcaves 2045 | -10/Subcaves | Accompanied by 3 allies 2090 | -10/Subcaves | Disturbed a concealed Subdweller 2200 | -10/Subcaves | Discovered new exit (range 8) 2202 | -10/Subcaves | Shifting Twisted Machinery released Piercing Trap 2213 | -10/Subcaves | Discovered new exit (range 6) 2383 | -10/Subcaves | Discovered new exit (range 15) 2474 | -10/Subcaves | A Subdweller sparked back to life 2474 | -10/Subcaves | A Subdweller sparked back to life 2474 | -10/Subcaves | A Subdweller sparked back to life 2476 | -10/Subcaves | Core integrity fell below 50% 2524 | -10/Subcaves | Found Prototype Power Core 2524 | -10/Subcaves | Identified Meta Core 2525 | -10/Subcaves | Attached Meta Core, gained temporary slots: Propulsion, Utility, Weapon 2881 | -10/Subcaves | Core integrity fell below 20% 2922 | -10/Subcaves | Identified Exp. Sensor Array 3110 | -10/Subcaves | Shifting Twisted Machinery released Battle Cannon 3122 | -10/Subcaves | Shifting Twisted Machinery released Riot Gun 3127 | -10/Subcaves | Destroyed self with Grenade Launcher Last Messages --------------- 02829_ Acquired 36 matter. 02864_ Destroyed Wheel. 02866_ HF-0Z4(O) cries out in pain. 02866_ HF-0Z4(O) destroyed. 02885_ Sub. Power Source melted. 02885_ 2F-I2C(R) destroyed. 02915_ Destroyed Sub. Power Source. 02918_ 8B-9DB(R) destroyed. 02922_ Identified Exp. Sensor Array. 02928_ Acquired 10 matter. 02988_ Subatomizers dissect the Sub. Optics. 03025_ 3R-CEB(R): "ECOKILL!" 03040_ E9-ID3(R): "OHNO!" 03057_ Acquired derelict log, extracted data. Data stored: Mines entrances (x2). Battle Cannon falls loose from the Twisted Machinery. 03112_ Sub. Beam Cannon shoots sparks and powers down. Riot Gun falls loose from the Twisted Machinery. Map ----- +----------------------------------------------------+ | ### ###?????????????????????????????????????????? | | #??###???????????????????????????????????????????? | | ####?????????????????????????????????????????????? | | %&!##????????????????????????????????????????????? | | %*########?????????????????????????????????????? | | # = ##????????????????????????????????????? | | ## #????????????????????????????????????? | | ## % #????????????????????????????????????? | | # ## ##????????????????????????????????????? | | % ### #?????????????????????????????????????? | | ### #???##????????????????????????????????? | | ###?## ##?# ##???????????????????????????????? | | #????## ## #???????????????????????????????? | | #????## #????????????????????????????????? | | ####### ##????????????????????????????????? | | "### ## #??????????##?????????????????????? | | # | #?????????? ##????????????????????? | | ##?????????? #????????????????????? | | ## ##???????#### ????????????????????? | | ### ##???????## "????????????????????? | | ## ###????#####""" ["""???????????????????? | | ### ##????## """""" """"???????????????????? | | ### #????# """"""""""????????????????????? | | "# ## ######## " """"#?????????????????????? | | ###### # "# " ""#?????????????????????? | | ##### "" ] @##?????????????????????? | | &#&# RRR ##??????????????????????? | | |%! # # ###"""""" "#???????????????????????? | | !& #####?## "" " #??????????????????????? | | " # # ##????## """ #??????????????????????? | | ###### #?????###### #?????????????????????? | | ##???# ##??????????## #?????????????????????? | | ##????### "#????????##?? #?????????????????????? | | #????### ##???????# ## ##?????????????????????? | | ##???# ##????## % #??????????????????????? | | #???## ] #???## ##??????????????????????? | | ##????# =% ###?#% #??????????????????????????? | | #?????## "" # ### "#???????????????????????????? | | #??????# "" "#????????????????????????????? | | #??????# " " #??##????????????????????????? | | #??????##" "" # ### #????????????????????????? | | ######???# ##### ## #????????????????????????? | | #?# ##### ##?# # #????????????????????????? | | ### ### ##???????????????????????? | | ## [& * ## ##??????????????????????? | | &%%= "" ### #??????????????????????? | | # ###*=!%""##?## #??????????????????????? | | "###?##=##""#???#### ##??????????????????????? | | ##????####" ##?????## ##???????????????????????? | | ##???????#" "###????# ##????????????????????????? | +----------------------------------------------------+ Best States ------------- Heat Dissipation 25 Coolant Potential 50 Energy Generation 17 Energy Capacity 250 Matter Stores 300 Matter Capacity 300 Sight Range 16 Robot Scan Range 20 Terrain Scan Range 16 Terrain Scan Density 10 Evasion (%) 44 Item Schematics ----------------- None Robot Schematics ------------------ None Fabricated ------------ Nothing Alien Tech Used ----------------- None Achievements -------------- None Challenges ------------ None Game ------ Seed BombardmentPoweredDoomcannon Manual? 0 Play Time 00:43:38 Cumulative 143.2 hours Start 2024.07.12 @ 23:24:55 End 2024.07.14 @ 16:54:28 Sessions 2 Manual Loads 0 Difficulty Rogue Special Mode None Game No. 39 Rogue 39 Adventurer 0 Explorer 0 Win Type - Total 5 Types 4/0/1/0/0/0/0/0/0 Lore% 61 Gallery% 72 Achievement% 64 Wizard Run 0 Options --------- Layout 2 ASCII 0 Keyboard 1 Movement Vi Keybinds 0 Fullscreen 1 Font 24/Smallcaps Map View 50x44 Zoom Use 0% Tactical HUD 1 Map Filters NONE Filters NONE Steam 1 RUN: 24b9f5c1-1225-4872-ac54-98233bb5fa92